[Event "*** Titled Tuesday Blitz"]
[Site "Chess.com"]
[Date "2021.02.09"]
[Round "10"]
[White "MergenKakabaev"]
[Black "OlifantCZ"]
[Result "0-1"]
[WhiteElo "2388"]
[BlackElo "2292"]
[TimeControl "180+1"]
[EndTime "11:57:01 PST"]
[Termination "OlifantCZ won on time"]

1. e4 {[%clk 0:03:00.9]} 1... e6 {[%clk 0:02:59.9]} 2. d4 {[%clk 0:03:00.1]}
2... d5 {[%clk 0:03:00.3]} 3. e5 {[%clk 0:03:00.6]} 3... c5 {[%clk 0:02:59.8]}
4. c3 {[%clk 0:03:01.1]} 4... Nc6 {[%clk 0:03:00.4]} 5. Nf3 {[%clk 0:03:00.7]}
5... Bd7 {[%clk 0:03:00.3]} 6. a3 {[%clk 0:03:00.7]} 6... f6 {[%clk 0:02:58.5]}
7. Bd3 {[%clk 0:02:59.4]} 7... Qc7 {[%clk 0:02:56.3]} 8. O-O {[%clk 0:02:59.3]}
8... O-O-O {[%clk 0:02:53.5]} 9. Re1 {[%clk 0:02:55.4]} 9... Nge7 {[%clk
0:02:51.1]} 10. b4 {[%clk 0:02:54.8]} 10... c4 {[%clk 0:02:48.3]} 11. Bc2 {[%clk
0:02:54.4]} 11... f5 {[%clk 0:02:48.6]} 12. Ng5 {[%clk 0:02:52]} 12... Re8
{[%clk 0:02:42.6]} 13. Nf7 {[%clk 0:02:50]} 13... Rg8 {[%clk 0:02:41.9]} 14.
Nd6+ {[%clk 0:02:49]} 14... Kb8 {[%clk 0:02:39]} 15. Nxe8 {[%clk 0:02:47.6]}
15... Bxe8 {[%clk 0:02:39.1]} 16. h4 {[%clk 0:02:44.7]} 16... h6 {[%clk
0:02:37]} 17. h5 {[%clk 0:02:35.8]} 17... g5 {[%clk 0:02:37.1]} 18. hxg6 {[%clk
0:02:34.6]} 18... Nxg6 {[%clk 0:02:37.2]} 19. Nd2 {[%clk 0:02:24.8]} 19... Nh4
{[%clk 0:02:18.4]} 20. g3 {[%clk 0:02:23.5]} 20... f4 {[%clk 0:02:18.4]} 21. Nf1
{[%clk 0:02:11.3]} 21... fxg3 {[%clk 0:02:13.3]} 22. fxg3 {[%clk 0:02:08.8]}
22... Qg7 {[%clk 0:02:07.9]} 23. Ra2 {[%clk 0:01:36.1]} 23... Ne7 {[%clk
0:02:01.8]} 24. Bb1 {[%clk 0:01:28.5]} 24... Nhf5 {[%clk 0:01:51.7]} 25. Rg2
{[%clk 0:01:25.5]} 25... h5 {[%clk 0:01:50.9]} 26. Ree2 {[%clk 0:01:15.4]} 26...
Qh7 {[%clk 0:01:40.2]} 27. Ref2 {[%clk 0:01:12.7]} 27... Bg6 {[%clk 0:01:33.3]}
28. Bf4 {[%clk 0:01:11.2]} 28... Nh6 {[%clk 0:00:41.2]} 29. Bxg6 {[%clk
0:01:08.8]} 29... Nxg6 {[%clk 0:00:40.7]} 30. Qxh5 {[%clk 0:01:06.7]} 30... Nxf4
{[%clk 0:00:31.3]} 31. Rxf4 {[%clk 0:01:00.3]} 31... Qg7 {[%clk 0:00:28.8]} 32.
Rgf2 {[%clk 0:00:52.3]} 32... Be7 {[%clk 0:00:27.3]} 33. Kg2 {[%clk 0:00:42.8]}
33... Nf5 {[%clk 0:00:24.8]} 34. Rxf5 {[%clk 0:00:41.4]} 34... exf5 {[%clk
0:00:24.6]} 35. Rxf5 {[%clk 0:00:41.4]} 35... Rh8 {[%clk 0:00:24]} 36. Qf3
{[%clk 0:00:32.3]} 36... Qh6 {[%clk 0:00:22.2]} 37. Rf7 {[%clk 0:00:19.7]} 37...
Bg5 {[%clk 0:00:18.2]} 38. Kf2 {[%clk 0:00:17.8]} 38... Bc1 {[%clk 0:00:14.8]}
39. Ke2 {[%clk 0:00:17.7]} 39... Bxa3 {[%clk 0:00:14.4]} 40. Qf4 {[%clk
0:00:15.1]} 40... a6 {[%clk 0:00:14.1]} 41. Qxh6 {[%clk 0:00:14.7]} 41... Rxh6
{[%clk 0:00:14.2]} 42. g4 {[%clk 0:00:15.1]} 42... b6 {[%clk 0:00:13.6]} 43. g5
{[%clk 0:00:14.8]} 43... Rg6 {[%clk 0:00:13.9]} 44. Rf5 {[%clk 0:00:14.6]} 44...
a5 {[%clk 0:00:13.3]} 45. bxa5 {[%clk 0:00:13.7]} 45... bxa5 {[%clk 0:00:13.6]}
46. Kd2 {[%clk 0:00:14.2]} 46... Be7 {[%clk 0:00:13.2]} 47. Nh2 {[%clk
0:00:14.4]} 47... Bxg5+ {[%clk 0:00:12.6]} 48. Kc2 {[%clk 0:00:09.9]} 48... Kb7
{[%clk 0:00:12.1]} 49. Nf3 {[%clk 0:00:10.1]} 49... Bd8 {[%clk 0:00:11]} 50.
Rf7+ {[%clk 0:00:09.7]} 50... Kc6 {[%clk 0:00:11.1]} 51. Ra7 {[%clk 0:00:08.9]}
51... Rg2+ {[%clk 0:00:10.3]} 52. Kb1 {[%clk 0:00:08.3]} 52... Kb5 {[%clk
0:00:07]} 53. e6 {[%clk 0:00:07.7]} 53... Ka4 {[%clk 0:00:06.6]} 54. Rb7 {[%clk
0:00:06.9]} 54... Rg3 {[%clk 0:00:05.3]} 55. Ne5 {[%clk 0:00:06.8]} 55... Rxc3
{[%clk 0:00:04.6]} 56. Nc6 {[%clk 0:00:06.6]} 56... Bh4 {[%clk 0:00:04.4]} 57.
Rh7 {[%clk 0:00:04.8]} 57... Bf6 {[%clk 0:00:03.1]} 58. Rf7 {[%clk 0:00:04.2]}
58... Bg5 {[%clk 0:00:03.2]} 59. Rf5 {[%clk 0:00:03.7]} 59... Bh4 {[%clk
0:00:03.4]} 60. Rf4 {[%clk 0:00:03.5]} 60... Bg5 {[%clk 0:00:02.7]} 61. Rf5
{[%clk 0:00:03.7]} 61... Bh4 {[%clk 0:00:02.9]} 62. Rxd5 {[%clk 0:00:03.8]}
62... Rd3 {[%clk 0:00:02.4]} 63. Rxa5+ {[%clk 0:00:03.1]} 63... Kb3 {[%clk
0:00:02.2]} 64. Rb5+ {[%clk 0:00:02]} 64... Kc3 {[%clk 0:00:02.5]} 65. d5 {[%clk
0:00:02.3]} 65... Kd2 {[%clk 0:00:01.3]} 0-1

[Event "*** Titled Tuesday Blitz"]
[Site "Chess.com"]
[Date "2021.02.09"]
[Round "10"]
[White "TomasKapitanchuk"]
[Black "nochewycandy"]
[Result "0-1"]
[WhiteElo "2512"]
[BlackElo "2655"]
[TimeControl "180+1"]
[EndTime "11:57:03 PST"]
[Termination "nochewycandy won by resignation"]

1. e4 {[%clk 0:03:00.9]} 1... g6 {[%clk 0:03:00.9]} 2. d4 {[%clk 0:03:00.5]}
2... Bg7 {[%clk 0:03:01.8]} 3. Nf3 {[%clk 0:02:58.5]} 3... d6 {[%clk 0:03:02.2]}
4. Nc3 {[%clk 0:02:57.7]} 4... a6 {[%clk 0:03:02.1]} 5. a4 {[%clk 0:02:57.1]}
5... b6 {[%clk 0:03:01.7]} 6. h3 {[%clk 0:02:56.9]} 6... e6 {[%clk 0:03:01.2]}
7. Bd3 {[%clk 0:02:56.8]} 7... Bb7 {[%clk 0:03:01.1]} 8. Bf4 {[%clk 0:02:56.6]}
8... h6 {[%clk 0:03:00.8]} 9. Qd2 {[%clk 0:02:56]} 9... Nd7 {[%clk 0:02:59.7]}
10. O-O {[%clk 0:02:56.3]} 10... Ne7 {[%clk 0:02:59.8]} 11. Rfe1 {[%clk
0:02:56.4]} 11... g5 {[%clk 0:02:59.7]} 12. Bg3 {[%clk 0:02:55.9]} 12... Ng6
{[%clk 0:02:56.5]} 13. d5 {[%clk 0:02:55.6]} 13... e5 {[%clk 0:02:56.7]} 14. Nh2
{[%clk 0:02:53.9]} 14... h5 {[%clk 0:02:54.9]} 15. f3 {[%clk 0:02:50.6]} 15...
Nf6 {[%clk 0:02:43.5]} 16. Bf2 {[%clk 0:02:43.4]} 16... Bc8 {[%clk 0:02:38]} 17.
g4 {[%clk 0:02:32.4]} 17... hxg4 {[%clk 0:02:36.3]} 18. hxg4 {[%clk 0:02:33.3]}
18... Nf4 {[%clk 0:02:30.2]} 19. Bf1 {[%clk 0:02:33.3]} 19... Nh7 {[%clk
0:02:26.6]} 20. Ne2 {[%clk 0:02:32.2]} 20... Nxe2+ {[%clk 0:02:22.6]} 21. Rxe2
{[%clk 0:02:29.8]} 21... Nf8 {[%clk 0:02:23.5]} 22. Bg3 {[%clk 0:02:26.4]} 22...
Ng6 {[%clk 0:02:23.5]} 23. Rg2 {[%clk 0:02:24.5]} 23... Nf4 {[%clk 0:02:21]} 24.
Bxf4 {[%clk 0:02:24.8]} 24... exf4 {[%clk 0:02:20.9]} 25. c3 {[%clk 0:02:25.3]}
25... Rh4 {[%clk 0:02:15.9]} 26. Bd3 {[%clk 0:02:24.7]} 26... Bd7 {[%clk
0:02:15.8]} 27. Nf1 {[%clk 0:02:22]} 27... Be5 {[%clk 0:02:13.2]} 28. Rh2 {[%clk
0:02:21.9]} 28... Qf6 {[%clk 0:02:08.8]} 29. Rxh4 {[%clk 0:02:20.4]} 29... gxh4
{[%clk 0:02:09.7]} 30. Kf2 {[%clk 0:02:20.4]} 30... h3 {[%clk 0:02:08.9]} 31.
Nh2 {[%clk 0:02:20.2]} 31... Qh4+ {[%clk 0:02:08.8]} 32. Kg1 {[%clk 0:02:12.7]}
32... Ke7 {[%clk 0:02:03.1]} 33. Qf2 {[%clk 0:02:12]} 33... Qg3+ {[%clk
0:02:02.9]} 34. Kf1 {[%clk 0:02:12.2]} 34... Rh8 {[%clk 0:02:00.8]} 35. Ke2
{[%clk 0:02:09]} 35... a5 {[%clk 0:01:56.6]} 36. Bb5 {[%clk 0:02:05.3]} 36...
Bxb5+ {[%clk 0:01:51.4]} 37. axb5 {[%clk 0:02:06.2]} 37... Kf6 {[%clk
0:01:44.7]} 38. Rg1 {[%clk 0:01:59.4]} 38... Qxf2+ {[%clk 0:01:43.7]} 39. Kxf2
{[%clk 0:02:00.3]} 39... Kg5 {[%clk 0:01:44.4]} 40. Ra1 {[%clk 0:01:58.1]} 40...
Kh4 {[%clk 0:01:38.3]} 41. Ra4 {[%clk 0:01:58.3]} 41... Ra8 {[%clk 0:01:36.3]}
42. Nf1 {[%clk 0:01:54.4]} 42... Kg5 {[%clk 0:01:32.4]} 43. Kg1 {[%clk
0:01:51.7]} 43... Kh4 {[%clk 0:01:28.8]} 44. Kh2 {[%clk 0:01:51.8]} 44... Ra7
{[%clk 0:01:16.5]} 45. Nd2 {[%clk 0:01:51.3]} 45... Kg5 {[%clk 0:01:12.5]} 46.
Kxh3 {[%clk 0:01:47.4]} 46... Ra8 {[%clk 0:01:12]} 47. Rc4 {[%clk 0:01:40.8]}
47... Ra7 {[%clk 0:01:10.2]} 48. Ra4 {[%clk 0:01:37.7]} 48... Ra8 {[%clk
0:01:09.7]} 49. Kg2 {[%clk 0:01:38.2]} 49... f6 {[%clk 0:01:09.5]} 50. Nc4
{[%clk 0:01:36.8]} 50... Ra7 {[%clk 0:01:07.4]} 51. Nxe5 {[%clk 0:01:34.8]}
51... fxe5 {[%clk 0:01:05.9]} 52. b4 {[%clk 0:01:35.7]} 52... Kh4 {[%clk
0:01:03.6]} 53. c4 {[%clk 0:01:32.2]} 53... Kg5 {[%clk 0:01:00]} 54. Kf2 {[%clk
0:01:25]} 54... Ra8 {[%clk 0:00:57]} 55. Ke2 {[%clk 0:01:12.9]} 55... Kh4 {[%clk
0:00:56.9]} 56. bxa5 {[%clk 0:01:11.6]} 56... bxa5 {[%clk 0:00:56.6]} 57. Kd2
{[%clk 0:01:06.4]} 57... Kg3 {[%clk 0:00:56.3]} 58. Ra3 {[%clk 0:01:06.5]} 58...
a4 {[%clk 0:00:50.7]} 59. Kc2 {[%clk 0:01:00.5]} 59... Kf2 {[%clk 0:00:49.3]}
60. Kb2 {[%clk 0:00:55.4]} 60... Ke2 {[%clk 0:00:49.1]} 61. Rc3 {[%clk
0:00:51.3]} 61... Kd2 {[%clk 0:00:36.2]} 62. c5 {[%clk 0:00:51.1]} 62... dxc5
{[%clk 0:00:35]} 63. Rxc5 {[%clk 0:00:52]} 63... a3+ {[%clk 0:00:33.7]} 64. Ka2
{[%clk 0:00:52.4]} 64... Ke2 {[%clk 0:00:21.9]} 65. Rc3 {[%clk 0:00:51.5]} 65...
Kd2 {[%clk 0:00:16.7]} 66. Rxa3 {[%clk 0:00:50.8]} 66... Rb8 {[%clk 0:00:16.6]}
67. Rb3 {[%clk 0:00:49.4]} 67... Kc2 {[%clk 0:00:16.9]} 68. b6 {[%clk
0:00:43.5]} 68... cxb6 {[%clk 0:00:16.4]} 69. d6 {[%clk 0:00:42.7]} 69... Ra8+
{[%clk 0:00:16.2]} 70. Ra3 {[%clk 0:00:41.8]} 70... Rd8 {[%clk 0:00:17.1]} 71.
Ra7 {[%clk 0:00:33.3]} 71... Rxd6 {[%clk 0:00:16.8]} 72. Re7 {[%clk 0:00:33.2]}
72... Rd4 {[%clk 0:00:14.9]} 73. Ka3 {[%clk 0:00:32.3]} 73... Rd3+ {[%clk
0:00:14.6]} 74. Kb4 {[%clk 0:00:32]} 74... Rxf3 {[%clk 0:00:15.5]} 75. Rxe5
{[%clk 0:00:32.5]} 75... Rg3 {[%clk 0:00:15.6]} 76. g5 {[%clk 0:00:31.8]} 76...
Kd3 {[%clk 0:00:15.6]} 77. Kb5 {[%clk 0:00:29.2]} 77... f3 {[%clk 0:00:15.5]}
78. Kxb6 {[%clk 0:00:26.8]} 78... Kd4 {[%clk 0:00:15.4]} 79. Re6 {[%clk
0:00:17.5]} 79... Rxg5 {[%clk 0:00:14.3]} 80. Kc6 {[%clk 0:00:15.5]} 80... Ke3
{[%clk 0:00:13.8]} 81. e5 {[%clk 0:00:14.7]} 81... f2 {[%clk 0:00:14.1]} 82. Rf6
{[%clk 0:00:08.3]} 82... Rxe5 {[%clk 0:00:14.2]} 83. Kd6 {[%clk 0:00:07.1]}
83... Re4 {[%clk 0:00:13.9]} 0-1

[Event "*** Titled Tuesday Blitz"]
[Site "Chess.com"]
[Date "2021.02.09"]
[Round "10"]
[White "wannabe2700"]
[Black "LilRag"]
[Result "1-0"]
[WhiteElo "2762"]
[BlackElo "2602"]
[TimeControl "180+1"]
[EndTime "11:57:18 PST"]
[Termination "wannabe2700 won by checkmate"]

1. e4 {[%clk 0:03:00.9]} 1... c5 {[%clk 0:02:58.9]} 2. d4 {[%clk 0:03:00.8]}
2... cxd4 {[%clk 0:02:58.7]} 3. Nf3 {[%clk 0:03:01.7]} 3... Nc6 {[%clk
0:02:57.4]} 4. Nxd4 {[%clk 0:03:01.9]} 4... Nf6 {[%clk 0:02:52.2]} 5. Nc3 {[%clk
0:03:01.8]} 5... d6 {[%clk 0:02:51.4]} 6. Bg5 {[%clk 0:03:01]} 6... e6 {[%clk
0:02:48.2]} 7. Qd2 {[%clk 0:03:00.6]} 7... Qb6 {[%clk 0:02:45.8]} 8. O-O-O
{[%clk 0:02:41.4]} 8... Nxd4 {[%clk 0:02:33.3]} 9. Qxd4 {[%clk 0:02:42.3]} 9...
Qxd4 {[%clk 0:02:33]} 10. Rxd4 {[%clk 0:02:43.1]} 10... a6 {[%clk 0:02:31.4]}
11. f3 {[%clk 0:02:37.5]} 11... Bd7 {[%clk 0:02:26.8]} 12. Bh4 {[%clk 0:02:31]}
12... Bc6 {[%clk 0:02:13.6]} 13. Be2 {[%clk 0:02:17.2]} 13... O-O-O {[%clk
0:02:09.9]} 14. Rhd1 {[%clk 0:02:15]} 14... Be7 {[%clk 0:02:08.5]} 15. a4 {[%clk
0:02:09.1]} 15... Rhe8 {[%clk 0:02:06.4]} 16. b4 {[%clk 0:01:33.5]} 16... e5
{[%clk 0:01:39.1]} 17. Rc4 {[%clk 0:01:19.2]} 17... Kb8 {[%clk 0:01:34.8]} 18.
b5 {[%clk 0:01:17.2]} 18... axb5 {[%clk 0:01:35.3]} 19. axb5 {[%clk 0:01:18.1]}
19... Bd7 {[%clk 0:01:35.8]} 20. Kb2 {[%clk 0:01:04.2]} 20... Be6 {[%clk
0:01:29.5]} 21. Ra4 {[%clk 0:01:03.9]} 21... Rc8 {[%clk 0:00:59.9]} 22. Bf2
{[%clk 0:00:55.8]} 22... Kc7 {[%clk 0:00:52.6]} 23. b6+ {[%clk 0:00:52]} 23...
Kd8 {[%clk 0:00:49.7]} 24. Ra7 {[%clk 0:00:45]} 24... Rb8 {[%clk 0:00:49.4]} 25.
Nb5 {[%clk 0:00:27.8]} 25... Kd7 {[%clk 0:00:44.4]} 26. Bc5 {[%clk 0:00:22.3]}
26... Kc6 {[%clk 0:00:38.5]} 27. Bxd6 {[%clk 0:00:20.8]} 27... Kxb6 {[%clk
0:00:36.9]} 28. Bxb8 {[%clk 0:00:06.8]} 28... Rxb8 {[%clk 0:00:36.4]} 29. Raa1
{[%clk 0:00:07.2]} 29... Bc5 {[%clk 0:00:32.9]} 30. Nd6 {[%clk 0:00:07.1]} 30...
Kc7 {[%clk 0:00:25.5]} 31. Nc4 {[%clk 0:00:06.4]} 31... Nd7 {[%clk 0:00:22.7]}
32. c3 {[%clk 0:00:06.8]} 32... g6 {[%clk 0:00:20.5]} 33. Nd2 {[%clk 0:00:06.8]}
33... f5 {[%clk 0:00:20.6]} 34. Bc4 {[%clk 0:00:07]} 34... Re8 {[%clk
0:00:17.9]} 35. Bxe6 {[%clk 0:00:07.2]} 35... Rxe6 {[%clk 0:00:18.8]} 36. Nc4
{[%clk 0:00:07.4]} 36... b5 {[%clk 0:00:18.5]} 37. Na5 {[%clk 0:00:07.1]} 37...
fxe4 {[%clk 0:00:18.6]} 38. fxe4 {[%clk 0:00:06.9]} 38... Nf6 {[%clk 0:00:19.3]}
39. Nb3 {[%clk 0:00:06.4]} 39... Bb6 {[%clk 0:00:19.8]} 40. Re1 {[%clk
0:00:06.3]} 40... Ng4 {[%clk 0:00:19.9]} 41. Re2 {[%clk 0:00:06.1]} 41... Nxh2
{[%clk 0:00:19.4]} 42. Rh1 {[%clk 0:00:06.6]} 42... Ng4 {[%clk 0:00:19.8]} 43.
Rxh7+ {[%clk 0:00:07.5]} 43... Kc6 {[%clk 0:00:20.2]} 44. Rg7 {[%clk 0:00:07]}
44... Ne3 {[%clk 0:00:20.1]} 45. Nd2 {[%clk 0:00:05.7]} 45... Rd6 {[%clk
0:00:18.9]} 46. Nf3 {[%clk 0:00:05.8]} 46... Nc4+ {[%clk 0:00:18.6]} 47. Kc1
{[%clk 0:00:06.2]} 47... Bc5 {[%clk 0:00:17.8]} 48. Re7 {[%clk 0:00:03.9]} 48...
Be3+ {[%clk 0:00:17.2]} 49. Kc2 {[%clk 0:00:03.8]} 49... Bf4 {[%clk 0:00:17.3]}
50. Kb3 {[%clk 0:00:02.7]} 50... g5 {[%clk 0:00:17]} 51. Ra2 {[%clk 0:00:02.8]}
51... Kb6 {[%clk 0:00:15.2]} 52. Rea7 {[%clk 0:00:02.5]} 52... Kc5 {[%clk
0:00:13.8]} 53. R2a6 {[%clk 0:00:01.7]} 53... Rxa6 {[%clk 0:00:09.4]} 54. Rxa6
{[%clk 0:00:02.6]} 54... g4 {[%clk 0:00:10.2]} 55. Nh4 {[%clk 0:00:02.5]} 55...
Nd2+ {[%clk 0:00:10.1]} 56. Kc2 {[%clk 0:00:02.2]} 56... Nxe4 {[%clk 0:00:10.9]}
57. Ng6 {[%clk 0:00:02.6]} 57... Nd6 {[%clk 0:00:07]} 58. Nxf4 {[%clk
0:00:01.8]} 58... exf4 {[%clk 0:00:07.9]} 59. Kd3 {[%clk 0:00:02.4]} 59... Kd5
{[%clk 0:00:07.1]} 60. Ra1 {[%clk 0:00:02]} 60... Ke5 {[%clk 0:00:06.1]} 61. Rb1
{[%clk 0:00:02]} 61... Kf5 {[%clk 0:00:05.8]} 62. Rb4 {[%clk 0:00:02.2]} 62...
Ke5 {[%clk 0:00:04.8]} 63. Rd4 {[%clk 0:00:02.6]} 63... Nf5 {[%clk 0:00:03.9]}
64. Rb4 {[%clk 0:00:02.2]} 64... Nd6 {[%clk 0:00:03.9]} 65. Rd4 {[%clk
0:00:02.7]} 65... g3 {[%clk 0:00:03.6]} 66. Ke2 {[%clk 0:00:02.1]} 66... Ke6
{[%clk 0:00:03.4]} 67. Kf3 {[%clk 0:00:02.3]} 67... Ke5 {[%clk 0:00:04.2]} 68.
Rd3 {[%clk 0:00:02.1]} 68... Nf5 {[%clk 0:00:04.3]} 69. Rd1 {[%clk 0:00:01.5]}
69... Ne3 {[%clk 0:00:04.7]} 70. Rd4 {[%clk 0:00:01.4]} 70... Nc2 {[%clk
0:00:03]} 71. Re4+ {[%clk 0:00:01.6]} 71... Kd5 {[%clk 0:00:03.1]} 72. Rxf4
{[%clk 0:00:02.5]} 72... Na3 {[%clk 0:00:03.5]} 73. Kxg3 {[%clk 0:00:02.8]}
73... Nb1 {[%clk 0:00:04.1]} 74. Rf3 {[%clk 0:00:02.9]} 74... Kc4 {[%clk
0:00:04.4]} 75. Kf4 {[%clk 0:00:03.4]} 75... Nxc3 {[%clk 0:00:04.9]} 76. g4
{[%clk 0:00:02.9]} 76... b4 {[%clk 0:00:05.4]} 77. g5 {[%clk 0:00:03.2]} 77...
Nb5 {[%clk 0:00:06]} 78. g6 {[%clk 0:00:03.4]} 78... b3 {[%clk 0:00:06.8]} 79.
g7 {[%clk 0:00:03.2]} 79... b2 {[%clk 0:00:07.7]} 80. Rf1 {[%clk 0:00:03.6]}
80... Kb4 {[%clk 0:00:08.5]} 81. Rb1 {[%clk 0:00:03.6]} 81... Kb3 {[%clk
0:00:08.4]} 82. Rxb2+ {[%clk 0:00:04.5]} 82... Kxb2 {[%clk 0:00:09.3]} 83. g8=Q
{[%clk 0:00:05.3]} 83... Nc3 {[%clk 0:00:10]} 84. Qc4 {[%clk 0:00:05.6]} 84...
Kc2 {[%clk 0:00:10.8]} 85. Ke3 {[%clk 0:00:06.1]} 85... Kb2 {[%clk 0:00:10.8]}
86. Kd3 {[%clk 0:00:07]} 86... Nb1 {[%clk 0:00:10.8]} 87. Qc2+ {[%clk
0:00:06.8]} 87... Ka1 {[%clk 0:00:11.1]} 88. Ke2 {[%clk 0:00:06.8]} 88... Na3
{[%clk 0:00:10.6]} 89. Qb3 {[%clk 0:00:07.3]} 89... Nb1 {[%clk 0:00:10.8]} 90.
Qb4 {[%clk 0:00:07.6]} 90... Ka2 {[%clk 0:00:10.7]} 91. Kd1 {[%clk 0:00:07.9]}
91... Ka1 {[%clk 0:00:11.1]} 92. Kc1 {[%clk 0:00:08.3]} 92... Ka2 {[%clk
0:00:10.5]} 93. Qb2# {[%clk 0:00:09.2]} 1-0